bitfinex/quotes_SOLUSD_20240625
["timestamp","ask_amount","ask_price","bid_price","bid_amount"]
[1719299489128,100.0,135.77,135.74,9.13]
[1719299490816,100.0,135.77,135.73,21.16471024]
[1719299491109,100.0,135.77,135.74,9.13]
[1719299491609,100.0,135.77,135.73,21.16471024]
[1719299491811,100.0,135.77,135.74,9.13]
[1719299494025,100.0,135.77,135.73,21.16471024]
[1719299494314,100.0,135.77,135.74,9.13]
[1719299494489,100.0,135.75,135.73,5.93451024]
[1719299494688,100.0,135.75,135.72,9.13]
[1719299496322,100.0,135.73,135.68,396.4778]
[1719299496693,100.0,135.75,135.7,9.13]
[1719299497026,100.0,135.73,135.68,396.4778]
[1719299497321,100.0,135.73,135.68,390.4]
[1719299497525,100.0,135.73,135.69,9.13]
[1719299497939,100.0,135.73,135.68,390.4]
[1719299499619,100.0,135.73,135.67,5.76241319]
[1719299499834,100.0,135.73,135.66,52.5103]
[1719299500031,100.0,135.73,135.66,58.28380356]
[1719299500521,100.0,135.77,135.72,9.13]
[1719299500818,100.0,135.77,135.74,9.13]
[1719299504425,100.0,135.77,135.73,9.13]
[1719299505215,100.0,135.77,135.72,16.2746]
[1719299505398,100.0,135.77,135.73,9.13]
[1719299505594,100.0,135.77,135.72,16.2746]
[1719299505831,100.0,135.77,135.73,9.13]
[1719299506525,100.0,135.77,135.72,16.2746]
[1719299506728,100.0,135.77,135.73,9.13]
[1719299506932,100.0,135.77,135.72,16.2746]
[1719299507105,100.0,135.77,135.73,9.13]
[1719299507824,100.0,135.77,135.72,16.2746]
[1719299508031,100.0,135.77,135.73,9.13]
[1719299508707,100.0,135.77,135.72,16.2746]
[1719299509231,100.0,135.77,135.73,9.13]
[1719299512045,100.0,135.77,135.74,9.13]
[1719299513318,100.0,135.79,135.75,9.13]
[1719299514023,100.0,135.79,135.72,16.2746]
[1719299514329,100.0,135.79,135.74,9.13]
[1719299514533,100.0,135.77,135.74,9.13]
[1719299515244,115.4641,135.8,135.71,5.82568337]
[1719299515245,100.0,135.75,135.71,5.82568337]
[1719299515418,100.0,135.75,135.72,20.0]
[1719299515619,100.0,135.75,135.73,9.13]
[1719299516126,100.0,135.73,135.69,396.24597193]
[1719299516323,100.0,135.73,135.7,9.13]
[1719299518053,100.0,135.75,135.71,9.13]
[1719299518246,100.0,135.77,135.72,9.13]
[1719299518819,100.0,135.77,135.73,9.13]
[1719299519130,100.0,135.77,135.72,9.13]
[1719299519326,100.0,135.75,135.72,9.13]
[1719299520816,100.0,135.75,135.68,15.2157]
[1719299521039,100.0,135.73,135.71,9.13]
[1719299522849,100.0,135.73,135.68,411.50761172]
[1719299523040,100.0,135.77,135.72,9.13]
[1719299523236,100.0,135.77,135.73,9.13]
[1719299525663,100.0,135.75,135.68,411.50761172]
[1719299525851,100.0,135.75,135.73,9.13]
[1719299528168,100.0,135.75,135.69,410.4]
[1719299528369,100.0,135.75,135.73,9.13]
[1719299531450,100.0,135.75,135.69,410.4]
[1719299531754,100.0,135.75,135.73,9.13]
[1719299532781,100.0,135.75,135.73,9.13]
[1719299533257,100.0,135.75,135.69,410.4]
[1719299533468,100.0,135.73,135.72,9.13]
[1719299534757,100.0,135.75,135.72,9.13]
[1719299535259,100.0,135.77,135.73,9.13]
[1719299535572,121.6992,135.8,135.73,9.13]
[1719299535573,121.6992,135.8,135.76,9.13]
[1719299535774,121.6992,135.8,135.7,6.5856]
[1719299535775,100.0,135.77,135.7,6.5856]
[1719299536066,100.0,135.77,135.76,9.13]
[1719299536273,100.0,135.77,135.75,9.13]
[1719299536643,100.0,135.77,135.71,0.17]
[1719299536843,100.0,135.77,135.75,9.13]
[1719299537063,100.0,135.77,135.75,9.105774]
[1719299542279,100.0,135.77,135.76,9.13]
[1719299543683,21.6992,135.8,135.76,9.13]
[1719299543684,100.0,135.79,135.76,9.13]
[1719299547083,100.0,135.79,135.71,20.17]
[1719299547381,100.0,135.79,135.76,9.13]
[1719299547759,100.0,135.79,135.77,9.13]
[1719299548466,100.0,135.81,135.73,52.5204]
[1719299548653,100.0,135.81,135.79,9.13]
[1719299549965,100.0,135.81,135.73,52.5204]
[1719299550173,100.0,135.81,135.78,9.13]
[1719299553385,100.0,135.79,135.73,52.5204]
[1719299553566,100.0,135.79,135.78,9.13]
[1719299554676,100.0,135.81,135.78,9.13]
[1719299556785,100.0,135.81,135.79,9.13]
[1719299560282,100.0,135.81,135.73,58.48985172]
[1719299560462,100.0,135.81,135.79,9.13]
[1719299562689,100.0,135.81,135.8,9.13]
[1719299570095,200.0,135.81,135.77,5.8613953]
[1719299570276,100.0,135.78,135.76,9.13]
[1719299572105,100.0,135.78,135.73,448.78782306]
[1719299572488,100.0,135.78,135.77,9.13]
[1719299573808,100.0,135.78,135.73,448.78782306]
[1719299573995,100.0,135.78,135.77,9.13]
[1719299576991,100.0,135.78,135.73,58.38782306]
[1719299577306,100.0,135.78,135.77,9.13]
[1719299580007,100.0,135.78,135.73,58.38782306]
[1719299580208,100.0,135.78,135.76,9.13]
[1719299581398,100.0,135.76,135.73,5.86742306]
[1719299581716,100.0,135.76,135.74,9.13]
[1719299582092,100.0,135.76,135.75,9.13]
[1719299582394,100.0,135.78,135.75,9.13]
[1719299582597,100.0,135.78,135.76,9.13]
[1719299589022,100.0,135.78,135.75,9.13]
[1719299589226,100.0,135.74,135.72,9.13]
[1719299589443,100.0,135.74,135.71,9.13]
[1719299591051,100.0,135.74,135.72,9.13]
[1719299591646,100.0,135.76,135.72,9.13]
[1719299591953,22.1457,135.78,135.74,9.13]
[1719299591954,100.0,135.78,135.74,9.13]
[1719299592127,100.0,135.78,135.7,21.17012739]
[1719299592328,100.0,135.76,135.73,9.13]
[1719299592831,100.0,135.76,135.74,9.13]
[1719299593036,0.2,135.75,135.74,9.13]
[1719299593232,0.2,135.75,135.73,9.13]
[1719299594153,100.0,135.74,135.71,20.0]
[1719299594346,100.0,135.74,135.72,9.13]
[1719299594534,0.2,135.75,135.72,9.13]
[1719299594851,0.2,135.75,135.7,21.17012739]
[1719299595061,0.2,135.75,135.73,9.13]
[1719299595228,0.2,135.75,135.7,21.17012739]
[1719299595427,0.2,135.75,135.73,9.13]
[1719299595857,0.2,135.75,135.74,9.13]
[1719299605190,0.2,135.75,135.7,21.17012739]
[1719299605369,0.2,135.75,135.74,9.13]
[1719299605973,0.2,135.75,135.7,21.17012739]
[1719299606174,0.2,135.75,135.74,9.13]
[1719299607459,0.2,135.75,135.7,21.17012739]
[1719299607665,0.2,135.75,135.73,9.13]
[1719299607875,0.2,135.75,135.74,9.13]
[1719299610393,0.2,135.75,135.73,9.13]
[1719299614189,0.2,135.75,135.7,411.57012739]
[1719299614412,0.2,135.75,135.72,9.13]
[1719299614918,0.2,135.75,135.73,9.13]
[1719299615484,0.2,135.75,135.7,411.57012739]
[1719299615705,0.2,135.75,135.73,9.13]
[1719299616214,100.0,135.73,135.68,16.6323]
[1719299616392,100.0,135.73,135.71,9.13]
[1719299618422,100.0,135.73,135.68,16.6323]
[1719299618586,100.0,135.73,135.71,9.13]
[1719299618787,100.0,135.73,135.68,16.6323]
[1719299618992,100.0,135.73,135.71,9.13]
[1719299619702,100.2,135.75,135.72,9.13]
[1719299622115,0.2,135.75,135.73,9.13]
[1719299622296,0.2,135.75,135.74,9.13]
[1719299622918,100.2,135.75,135.73,9.13]
[1719299625114,100.2,135.75,135.72,9.13]
[1719299626618,100.0,135.73,135.68,16.6323]
[1719299626814,100.0,135.73,135.71,9.13]
[1719299628014,100.0,135.73,135.72,9.13]
[1719299629108,100.0,135.73,135.69,20.0]
[1719299629316,100.0,135.73,135.72,9.13]
[1719299630627,100.0,135.73,135.69,20.0]
[1719299630824,100.0,135.73,135.72,9.13]
[1719299631536,100.0,135.73,135.69,20.0]
[1719299631699,100.0,135.73,135.72,9.13]
[1719299633025,100.0,135.73,135.69,20.0]
[1719299633200,100.0,135.73,135.71,9.13]
[1719299634121,100.0,135.73,135.72,9.13]
[1719299635207,100.0,135.73,135.69,20.0]
[1719299635401,100.0,135.73,135.72,9.13]
[1719299639237,100.0,135.73,135.69,20.0]
[1719299639435,100.0,135.73,135.72,9.13]
[1719299639630,100.0,135.73,135.71,9.13]
[1719299640657,100.0,135.73,135.69,20.0]
[1719299640658,100.0,135.73,135.72,9.13]
[1719299645663,100.0,135.73,135.69,20.0]
[1719299645961,100.0,135.71,135.67,5.82611313]
[1719299646131,100.0,135.71,135.66,390.4]
[1719299646460,100.0,135.71,135.69,9.13]
[1719299646659,100.0,135.71,135.67,20.0]
[1719299646834,100.0,135.71,135.69,9.13]
[1719299647237,100.0,135.71,135.67,20.0]
[1719299647954,100.0,135.71,135.68,9.13]
[1719299649741,100.0,135.68,135.66,5.77853651]
[1719299649939,100.0,135.68,135.61,413.27912317]
[1719299650260,100.0,135.68,135.66,9.13]
[1719299654365,100.0,135.68,135.61,411.64412941]
[1719299654541,100.0,135.68,135.62,20.0]
[1719299655544,100.0,135.68,135.65,9.13]
[1719299656567,100.0,135.68,135.62,20.0]
[1719299656751,100.0,135.68,135.65,9.13]
[1719299657648,100.0,135.68,135.62,20.0]
[1719299657964,100.0,135.68,135.66,9.13]
[1719299658270,100.0,135.68,135.62,20.0]
[1719299658562,100.0,135.7,135.67,9.13]
[1719299658771,100.0,135.7,135.68,9.13]
[1719299658973,100.0,135.7,135.67,9.13]
[1719299660377,106.2763,135.72,135.62,410.4]
[1719299660575,106.2763,135.72,135.68,9.13]
[1719299661290,106.2763,135.72,135.71,9.13]
[1719299661577,106.2763,135.72,135.66,36.52]
[1719299661782,106.2763,135.72,135.71,9.13]
[1719299663095,106.2763,135.72,135.7,9.13]
[1719299665477,106.2763,135.72,135.71,9.13]
[1719299666456,0.2,135.75,135.71,9.13]
[1719299666457,100.2,135.75,135.71,9.13]
[1719299666757,0.2,135.75,135.74,9.13]
[1719299667588,100.2,135.75,135.74,9.13]
[1719299668191,100.2,135.75,135.67,0.17]
[1719299668389,100.2,135.75,135.74,9.13]
[1719299668783,100.2,135.75,135.67,410.74]
[1719299669087,100.2,135.75,135.74,9.13]
[1719299669277,100.2,135.75,135.67,410.74]
[1719299669469,100.2,135.75,135.74,9.13]
[1719299669672,100.0,135.73,135.67,410.4]
[1719299669978,100.0,135.71,135.67,20.0]
[1719299670166,100.0,135.71,135.7,9.13]
[1719299670373,100.0,135.71,135.67,20.0]
[1719299670681,100.0,135.71,135.7,9.13]
[1719299671669,100.0,135.71,135.67,20.0]
[1719299672070,100.0,135.71,135.7,9.13]
[1719299672691,100.0,135.71,135.67,20.0]
[1719299672889,100.0,135.71,135.7,9.13]
[1719299673073,100.0,135.69,135.62,415.99042239]
[1719299673274,100.0,135.69,135.68,9.13]
[1719299673598,0.17,135.71,135.62,421.85088869]
[1719299673599,100.0,135.67,135.62,411.9726663]
[1719299673772,100.0,135.67,135.62,5.8604663]
[1719299673975,100.0,135.67,135.66,9.13]
[1719299674158,100.0,135.67,135.6,12.74652979]
[1719299674579,100.0,135.67,135.66,9.13]
[1719299675200,100.0,135.67,135.6,12.74652979]
[1719299675399,100.0,135.65,135.6,5.83307477]
[1719299675909,100.0,135.65,135.64,9.13]
[1719299676091,100.0,135.65,135.6,5.83307477]
[1719299676401,100.0,135.65,135.64,9.13]
[1719299676794,100.0,135.65,135.6,5.83307477]
[1719299676995,100.0,135.65,135.64,9.13]
[1719299677201,100.0,135.67,135.64,9.13]
[1719299677605,100.0,135.67,135.66,9.13]
[1719299677912,100.0,135.67,135.6,5.83307477]
[1719299678089,100.0,135.67,135.66,9.13]
[1719299678485,100.0,135.67,135.61,45.0]
[1719299678691,100.0,135.67,135.66,9.13]
[1719299679315,100.0,135.67,135.61,45.0]
[1719299679492,100.0,135.67,135.6,5.83307477]
[1719299679493,100.0,135.65,135.6,5.83307477]
[1719299679817,100.0,135.65,135.64,9.13]
[1719299680021,100.0,135.65,135.6,5.83307477]
[1719299680190,100.0,135.65,135.64,9.13]
[1719299680922,106.0814,135.68,135.64,9.13]
[1719299680923,100.0,135.67,135.64,9.13]
[1719299681106,100.0,135.67,135.66,9.13]
[1719299682928,100.0,135.67,135.6,5.83307477]
[1719299683090,100.0,135.67,135.66,9.13]
[1719299686709,106.0814,135.68,135.66,9.13]
[1719299686912,106.0814,135.68,135.67,9.13]
[1719299687503,6.0814,135.68,135.67,9.13]
[1719299688432,100.0,135.67,135.61,45.0]
[1719299688589,100.0,135.67,135.66,9.13]
[1719299689322,100.17,135.67,135.66,9.13]
[1719299689536,100.34,135.67,135.66,9.13]
[1719299689732,100.0,135.65,135.6,5.83307477]
[1719299690026,100.0,135.67,135.64,9.13]
[1719299690327,100.0,135.67,135.61,45.0]
[1719299690328,100.0,135.67,135.66,9.13]
[1719299693530,100.0,135.67,135.61,45.0]
[1719299693833,100.0,135.67,135.66,9.13]
[1719299694636,100.0,135.67,135.61,45.0]
[1719299694937,100.0,135.67,135.66,9.13]
[1719299696323,100.17,135.67,135.66,9.13]
[1719299696632,100.0,135.67,135.66,9.13]
[1719299696835,100.0,135.65,135.6,5.83307477]
[1719299697140,100.0,135.65,135.64,9.13]
[1719299699640,100.17,135.67,135.64,9.13]
[1719299699843,100.17,135.67,135.66,9.13]
[1719299700136,100.0,135.67,135.66,18.26]
[1719299700334,100.0,135.67,135.66,9.13]
[1719299701732,100.0,135.65,135.6,5.83307477]
[1719299701936,100.0,135.65,135.64,9.13]
[1719299703035,100.17,135.67,135.64,9.13]
[1719299703240,21.699,135.72,135.66,18.26]
[1719299703241,100.0,135.69,135.66,18.26]
[1719299703423,100.0,135.69,135.66,45.65]
[1719299703741,100.0,135.69,135.68,9.13]
[1719299705436,100.0,135.69,135.63,6.3947]
[1719299705634,100.0,135.69,135.68,9.13]
[1719299705845,100.0,135.69,135.63,6.3947]
[1719299706042,100.0,135.69,135.68,9.13]
[1719299706260,100.17,135.69,135.68,9.13]
[1719299706568,100.0,135.69,135.68,9.13]
[1719299708839,100.0,135.71,135.68,9.13]
[1719299709040,100.0,135.73,135.7,9.13]
[1719299709348,100.0,135.73,135.72,9.13]
[1719299710440,100.2,135.75,135.72,9.13]
[1719299710747,100.2,135.75,135.74,9.13]
[1719299712455,100.0,135.72,135.67,407.0011]
[1719299712660,100.0,135.72,135.71,9.13]
[1719299713375,0.2,135.75,135.71,54.13]
[1719299713376,100.0,135.74,135.71,54.13]
[1719299713551,100.0,135.74,135.73,9.13]
[1719299714974,0.2,135.75,135.73,18.26]
[1719299715178,100.0,135.76,135.74,9.13]
[1719299715372,100.0,135.76,135.75,9.13]
[1719299715749,121.7005,135.79,135.69,6.3388]
[1719299715750,100.0,135.73,135.69,6.3388]
[1719299715963,100.0,135.73,135.72,9.13]
[1719299716152,100.0,135.71,135.67,407.0011]
[1719299716364,100.0,135.73,135.7,9.13]
[1719299716559,100.0,135.73,135.72,9.13]
[1719299717757,100.0,135.71,135.68,20.0]
[1719299717953,100.0,135.71,135.7,9.13]
[1719299719366,100.0,135.73,135.7,9.13]
[1719299719679,100.0,135.73,135.72,9.13]
[1719299720385,100.0,135.76,135.72,18.26]
[1719299720583,100.0,135.76,135.75,9.13]
[1719299722792,100.0,135.76,135.74,27.38]
[1719299725273,100.0,135.73,135.67,16.6011]
[1719299725481,100.0,135.73,135.71,27.38]
[1719299725982,100.0,135.73,135.67,16.6011]
[1719299726164,100.0,135.73,135.69,27.38]
[1719299727370,100.0,135.71,135.69,27.38]
[1719299728190,100.0,135.71,135.67,16.6011]
[1719299728394,100.0,135.71,135.66,396.8962]
[1719299728395,100.0,135.69,135.66,390.4]
[1719299728576,100.0,135.69,135.66,27.38]
[1719299731294,100.0,135.69,135.67,45.0]
[1719299732387,100.0,135.69,135.63,396.8612]
[1719299732388,100.0,135.69,135.66,27.38]
[1719299732597,100.0,135.69,135.61,15.8313]
[1719299732598,100.0,135.65,135.62,390.4]
[1719299732793,100.0,135.65,135.62,417.78]
[1719299735487,100.0,135.65,135.63,45.0]
[1719299736396,100.0,135.67,135.63,45.0]
[1719299736575,100.0,135.67,135.65,27.38]
[1719299737197,100.0,135.67,135.63,45.0]
[1719299737503,100.0,135.67,135.64,27.38]
[1719299737704,100.0,135.67,135.65,45.0]
[1719299738799,100.0,135.67,135.64,27.38]
[1719299741213,100.0,135.71,135.64,27.38]
[1719299741377,100.0,135.71,135.69,27.38]
[1719299742585,100.0,135.71,135.65,65.0]
[1719299742787,100.0,135.71,135.68,27.38]
[1719299745212,100.0,135.73,135.68,27.38]
[1719299745518,100.0,135.73,135.69,45.0]
[1719299754136,100.0,135.75,135.71,27.38]
[1719299754320,100.0,135.75,135.72,45.0]
[1719299754641,100.0,135.75,135.74,9.13]
[1719299756643,100.0,135.75,135.73,27.39]
[1719299759337,100.0,135.72,135.7,27.39]
[1719299759939,100.0,135.73,135.7,27.39]
[1719299760138,100.0,135.73,135.71,45.0]
[1719299760751,100.0,135.71,135.7,27.39]
[1719299760949,100.0,135.73,135.7,27.39]
[1719299761455,100.0,135.75,135.7,27.39]
[1719299761948,100.0,135.75,135.71,45.0]
[1719299762731,100.0,135.8,135.73,27.39]
[1719299762732,100.0,135.77,135.73,27.39]
[1719299763228,100.0,135.77,135.74,45.0]
[1719299763438,100.0,135.79,135.74,45.0]
[1719299764855,100.0,135.77,135.74,45.0]
[1719299768658,100.0,135.79,135.74,45.0]
[1719299769053,121.5721,135.81,135.74,45.0]
[1719299769251,100.0,135.81,135.76,27.39]
[1719299769558,100.0,135.84,135.76,27.39]
[1719299769559,100.0,135.83,135.76,27.39]
[1719299769759,100.0,135.83,135.77,45.0]
[1719299771060,100.0,135.83,135.79,27.39]
[1719299771356,100.0,135.85,135.79,27.39]
[1719299771558,100.0,135.85,135.8,45.0]
[1719299772358,100.0,135.87,135.82,27.39]
[1719299773046,100.0,135.87,135.83,45.0]
[1719299773252,100.0,135.87,135.82,27.39]
[1719299773668,100.0,135.87,135.83,45.0]
[1719299775173,100.0,135.87,135.82,43.3978]
[1719299776150,100.0,135.85,135.82,43.3978]
[1719299776353,100.0,135.85,135.82,27.39]
[1719299777051,100.0,135.87,135.82,27.39]
[1719299777252,100.0,135.87,135.83,45.0]
[1719299781974,100.0,135.85,135.8,6.0141]
[1719299782774,100.0,135.83,135.79,27.39]
[1719299783076,100.0,135.83,135.78,22.08786041]
[1719299784875,100.0,135.83,135.79,45.0]
[1719299786669,100.0,135.85,135.8,45.0]
[1719299787177,100.0,135.85,135.79,45.0]
[1719299787884,0.17,135.84,135.78,22.08786041]
[1719299788084,100.0,135.85,135.79,45.0]
[1719299788772,100.0,135.85,135.82,9.12]
[1719299789385,100.0,135.85,135.79,45.0]
[1719299789578,15.732,135.86,135.82,9.12]
[1719299790283,100.0,135.83,135.82,9.12]
[1719299790454,100.0,135.85,135.82,9.12]
[1719299790658,100.0,135.85,135.83,9.12]
[1719299791189,100.0,135.85,135.82,9.12]
[1719299791684,100.0,135.83,135.82,9.12]
[1719299792592,100.0,135.83,135.78,16.1052]
[1719299792761,100.0,135.81,135.74,15.959]
[1719299792968,100.0,135.81,135.79,9.12]
[1719299793269,100.0,135.81,135.75,20.0]
[1719299793456,100.0,135.81,135.79,9.12]
[1719299794995,100.0,135.85,135.8,9.12]
[1719299795209,100.0,135.85,135.82,9.12]
[1719299795502,100.0,135.85,135.76,0.34]
[1719299795677,100.0,135.85,135.82,9.12]
[1719299798503,0.17,135.84,135.82,9.12]
[1719299798803,100.0,135.85,135.82,9.12]
[1719299799989,100.0,135.83,135.82,9.12]
[1719299800702,100.0,135.85,135.82,9.12]
[1719299801281,100.0,135.85,135.76,435.4]
[1719299801481,100.0,135.85,135.81,9.12]
[1719299802499,200.0,135.83,135.76,435.4]
[1719299802710,100.0,135.8,135.79,9.12]
[1719299803199,100.0,135.8,135.78,9.12]
[1719299803598,100.0,135.8,135.79,9.12]
[1719299804401,100.0,135.83,135.79,9.12]
[1719299804607,100.0,135.83,135.8,9.12]
[1719299804989,100.0,135.83,135.81,9.12]
[1719299805302,100.0,135.85,135.81,9.12]
[1719299807702,100.0,135.85,135.75,410.4]
[1719299807889,100.0,135.85,135.81,9.12]
[1719299811615,100.0,135.83,135.81,9.12]
[1719299812706,115.562,135.86,135.81,9.12]
[1719299812902,100.0,135.86,135.83,9.12]
[1719299813911,100.0,135.88,135.84,9.12]
[1719299818121,100.0,135.88,135.85,9.12]
[1719299820814,100.0,135.88,135.82,15.8453]
[1719299820815,100.0,135.88,135.86,9.12]
[1719299822333,100.0,135.86,135.82,22.3212]
[1719299822504,100.0,135.86,135.82,15.8453]
[1719299822710,100.0,135.86,135.83,9.12]
[1719299823608,100.0,135.86,135.84,9.12]
[1719299824331,100.0,135.86,135.82,15.8453]
[1719299824741,100.0,135.86,135.84,9.12]
[1719299825244,100.0,135.86,135.82,15.8453]
[1719299825414,100.0,135.86,135.84,9.12]
[1719299826025,100.0,135.86,135.83,9.12]
[1719299826234,100.0,135.86,135.84,9.12]
[1719299826825,100.0,135.86,135.82,15.8453]
[1719299827142,100.0,135.86,135.84,9.12]
[1719299828643,100.0,135.86,135.82,15.8453]
[1719299828644,100.0,135.86,135.83,9.12]
[1719299832455,100.0,135.86,135.82,15.8453]
[1719299832746,100.0,135.86,135.83,9.12]
[1719299833843,100.0,135.88,135.83,9.12]
[1719299834022,100.0,135.88,135.85,9.12]
[1719299834429,100.17,135.89,135.85,9.12]
[1719299834652,100.0,135.9,135.86,9.12]
[1719299836851,100.0,135.93,135.82,15.8453]
[1719299836852,100.0,135.88,135.85,9.12]
[1719299837342,100.0,135.88,135.86,9.12]
[1719299837853,100.0,135.9,135.86,9.12]
[1719299842636,100.0,135.9,135.87,9.12]
[1719299843750,100.0,135.9,135.86,9.12]
[1719299846059,100.0,135.9,135.84,6.478]
[1719299846239,109.12,135.9,135.84,15.598]
[1719299847455,109.12,135.9,135.85,9.12]
[1719299847645,100.0,135.88,135.85,9.12]
[1719299849156,100.0,135.88,135.82,406.2453]
[1719299849363,100.0,135.88,135.83,29.12]
[1719299849657,100.0,135.86,135.82,415.3653]
[1719299849959,100.0,135.86,135.83,9.12]
[1719299850339,100.0,135.86,135.82,415.3653]
[1719299851255,100.0,135.86,135.82,24.9653]
[1719299855751,100.0,135.86,135.81,6.00041497]
[1719299856058,100.0,135.86,135.82,9.12]
[1719299858158,100.0,135.84,135.79,21.8929166]
[1719299858366,100.0,135.84,135.8,45.0]
[1719299858568,100.0,135.84,135.8,54.12]
[1719299859372,109.12,135.84,135.79,16.0592]
[1719299859556,109.12,135.84,135.78,9.12]
[1719299859752,100.0,135.82,135.77,6.5149]
[1719299860062,100.0,135.82,135.79,9.12]
[1719299860866,100.0,135.82,135.77,12.37327106]
[1719299861169,100.0,135.82,135.79,9.12]
[1719299863564,109.12,135.84,135.79,9.12]
[1719299864668,100.0,135.84,135.79,9.12]
[1719299864852,109.12,135.84,135.79,9.12]
[1719299865249,109.12,135.84,135.78,45.0]
[1719299865461,109.12,135.84,135.79,9.12]
[1719299867365,109.12,135.84,135.78,45.0]
[1719299867767,100.0,135.82,135.78,45.0]
[1719299868160,109.12,135.82,135.78,45.0]
[1719299868361,109.12,135.82,135.77,54.12]
[1719299868958,109.12,135.82,135.77,45.0]
[1719299869171,209.12,135.82,135.76,15.5039]
[1719299869353,9.12,135.81,135.75,9.12]
[1719299869672,9.12,135.81,135.76,9.12]
[1719299870465,100.0,135.82,135.76,9.12]
[1719299870777,109.12,135.82,135.76,9.12]
[1719299871271,109.12,135.82,135.77,45.0]
[1719299871576,100.0,135.82,135.77,54.12]
[1719299871769,109.12,135.82,135.77,54.12]
[1719299873075,109.12,135.82,135.77,45.0]
[1719299874056,100.0,135.82,135.77,45.0]
[1719299875964,100.0,135.82,135.77,54.12]
[1719299877477,222.0022,135.84,135.78,9.12]
[1719299877678,100.0,135.82,135.78,9.12]
[1719299878182,100.0,135.82,135.77,45.0]
[1719299878384,100.0,135.82,135.78,9.12]
[1719299880668,100.0,135.82,135.77,45.0]
[1719299880669,109.12,135.82,135.77,54.12]
[1719299880869,109.12,135.82,135.77,9.12]
[1719299881484,9.12,135.81,135.76,9.12]
[1719299881696,100.0,135.82,135.77,9.12]
[1719299881992,100.0,135.82,135.77,54.12]
[1719299883071,100.0,135.82,135.78,9.12]